Workbook

Sheet Sheet1 (hidden)
B2: Sales | C2: Expenses | D2: Profits | E2: No. of Customers
B3: =P32 -> 7096.827256 | C3: =Q32 -> 6969.037763 | D3: 127.7894939 | E3: 424.7872294
I7: 4
T15: ="Monthly breakup of "&selectedValue&" [Jan - Dec, 2019]" -> Monthly breakup of No. of Customers [Jan - Dec, 2019]
O18: Month | P18: Sales | Q18: Expenses | R18: Profits | S18: No. of Customers | T18: =INDEX(P18:$S$30,,$I$7) -> No. of Customers
O19: 2019-01-01 | P19: 577.1189308 | Q19: 771.4645051 | R19: =P19-Q19 -> -194.3455743 | S19: 31.27838979 | T19: =INDEX(P19:$S$30,,$I$7) -> 31.27838979
O20: 2019-02-01 | P20: 174.8219509 | Q20: 671.3667845 | R20: =P20-Q20 -> -496.5448336 | S20: 37.49947557 | T20: =INDEX(P20:$S$30,,$I$7) -> 37.49947557
O21: 2019-03-01 | P21: 931.1931139 | Q21: 674.4917769 | R21: 256.701337 | S21: 48.53295885 | T21: =INDEX(P21:$S$30,,$I$7) -> 48.53295885
O22: 2019-04-01 | P22: 551.5497642 | Q22: 1132.543919 | R22: -580.9941546 | S22: 21.71631962 | T22: =INDEX(P22:$S$30,,$I$7) -> 21.71631962
O23: 2019-05-01 | P23: 155.3199952 | Q23: 15.04935749 | R23: 140.2706377 | S23: 33.57241592 | T23: =INDEX(P23:$S$30,,$I$7) -> 33.57241592
O24: 2019-06-01 | P24: 1030.63848 | Q24: 345.2112811 | R24: 685.4271991 | S24: 40.55927521 | T24: =INDEX(P24:$S$30,,$I$7) -> 40.55927521
O25: 2019-07-01 | P25: 323.3918921 | Q25: 596.9504604 | R25: -273.5585683 | S25: 47.43542644 | T25: =INDEX(P25:$S$30,,$I$7) -> 47.43542644
O26: 2019-08-01 | P26: 228.5401494 | Q26: 528.8906069 | R26: -300.3504574 | S26: 20.96972499 | T26: =INDEX(P26:$S$30,,$I$7) -> 20.96972499
O27: 2019-09-01 | P27: 1009.134688 | Q27: 890.7464285 | R27: 118.3882599 | S27: 24.10763923 | T27: =INDEX(P27:$S$30,,$I$7) -> 24.10763923
O28: 2019-10-01 | P28: 179.1083621 | Q28: 856.6662665 | R28: -677.5579044 | S28: 43.49112147 | T28: =INDEX(P28:$S$30,,$I$7) -> 43.49112147
O29: 2019-11-01 | P29: 1429.51101 | Q29: 36.4307595 | R29: 1393.080251 | S29: 45.17858734 | T29: =INDEX(P29:$S$30,,$I$7) -> 45.17858734
O30: 2019-12-01 | P30: 506.498919 | Q30: 449.2256168 | R30: 57.2733022 | S30: 30.445895 | T30: =INDEX(P30:$S$30,,$I$7) -> 30.445895
O32: Total | P32: =SUM(P19:P30) -> 7096.827256 | Q32: =SUM(Q19:Q30) -> 6969.037763 | R32: 127.7894939 | S32: 424.7872294

Sheet Sheet2 (hidden)
B2: Sales | D2: Expenses | F2: Profits | H2: No. of Customers
W3: ="Monthly Breakup of"&" "&X7 -> Monthly Breakup of Expenses
W4: Column number
B5: =T21 -> 7096.827256 | D5: =U21 -> 6969.037763 | F5: =V21 -> 127.7894939 | H5: =W21 -> 424.7872294
S7: Month | T7: Sales | U7: Expenses | V7: Profits | W7: No. of Customers | X7: =INDEX(T7:W7,$K$8) -> Expenses
K8: 2 | S8: 2019-01-01 | T8: 577.1189308 | U8: 771.4645051 | V8: =T8-U8 -> -194.3455743 | W8: 31.27838979 | X8: 771.4645051
S9: 2019-02-01 | T9: 174.8219509 | U9: 671.3667845 | V9: =T9-U9 -> -496.5448336 | W9: 37.49947557 | X9: 671.3667845
S10: 2019-03-01 | T10: 931.1931139 | U10: 674.4917769 | V10: 256.701337 | W10: 48.53295885 | X10: 674.4917769
S11: 2019-04-01 | T11: 551.5497642 | U11: 1132.543919 | V11: -580.9941546 | W11: 21.71631962 | X11: 1132.543919
S12: 2019-05-01 | T12: 155.3199952 | U12: 15.04935749 | V12: 140.2706377 | W12: 33.57241592 | X12: 15.04935749
S13: 2019-06-01 | T13: 1030.63848 | U13: 345.2112811 | V13: 685.4271991 | W13: 40.55927521 | X13: 345.2112811
S14: 2019-07-01 | T14: 323.3918921 | U14: 596.9504604 | V14: -273.5585683 | W14: 47.43542644 | X14: 596.9504604
S15: 2019-08-01 | T15: 228.5401494 | U15: 528.8906069 | V15: -300.3504574 | W15: 20.96972499 | X15: 528.8906069
S16: 2019-09-01 | T16: 1009.134688 | U16: 890.7464285 | V16: 118.3882599 | W16: 24.10763923 | X16: 890.7464285
S17: 2019-10-01 | T17: 179.1083621 | U17: 856.6662665 | V17: -677.5579044 | W17: 43.49112147 | X17: 856.6662665
S18: 2019-11-01 | T18: 1429.51101 | U18: 36.4307595 | V18: 1393.080251 | W18: 45.17858734 | X18: 36.4307595
S19: 2019-12-01 | T19: 506.498919 | U19: 449.2256168 | V19: 57.2733022 | W19: 30.445895 | X19: 449.2256168
S21: total | T21: =SUM(T8:T19) -> 7096.827256 | U21: =SUM(U8:U19) -> 6969.037763 | V21: 127.7894939 | W21: 424.7872294 | X21: 6969.037763

Sheet Final
B2: Sales | E2: Expenses | H2: Profits | K2: No. of Customers | V2: ="Monthly Breakup of"&" "&Z3 -> Monthly Breakup of No. of Customers
U3: Month | V3: Sales | W3: Expenses | X3: Profits | Y3: No. of Customers | Z3: =INDEX(V3:Y3,,$F$8) -> No. of Customers
U4: 2019-01-01 | W4: 771.4645051 | X4: =V4-W4 -> -771.4645051 | Y4: 31.27838979 | Z4: =INDEX(V4:Y4,,$F$8) -> 31.27838979
B5: =V17 -> 6519.708326 | E5: =W17 -> 6969.037763 | H5: =X17 -> -449.329437 | K5: =Y17 -> 424.7872294 | U5: 2019-02-01 | V5: 174.8219509 | W5: 671.3667845 | X5: =V5-W5 -> -496.5448336 | Y5: 37.49947557 | Z5: 37.49947557
U6: 2019-03-01 | V6: 931.1931139 | W6: 674.4917769 | X6: 256.701337 | Y6: 48.53295885 | Z6: 48.53295885
U7: 2019-04-01 | V7: 551.5497642 | W7: 1132.543919 | X7: -580.9941546 | Y7: 21.71631962 | Z7: 21.71631962
F8: 4 | U8: 2019-05-01 | V8: 155.3199952 | W8: 15.04935749 | X8: 140.2706377 | Y8: 33.57241592 | Z8: 33.57241592
U9: 2019-06-01 | V9: 1030.63848 | W9: 345.2112811 | X9: 685.4271991 | Y9: 40.55927521 | Z9: 40.55927521
U10: 2019-07-01 | V10: 323.3918921 | W10: 596.9504604 | X10: -273.5585683 | Y10: 47.43542644 | Z10: 47.43542644
U11: 2019-08-01 | V11: 228.5401494 | W11: 528.8906069 | X11: -300.3504574 | Y11: 20.96972499 | Z11: 20.96972499
U12: 2019-09-01 | V12: 1009.134688 | W12: 890.7464285 | X12: 118.3882599 | Y12: 24.10763923 | Z12: 24.10763923
U13: 2019-10-01 | V13: 179.1083621 | W13: 856.6662665 | X13: -677.5579044 | Y13: 43.49112147 | Z13: 43.49112147
U14: 2019-11-01 | V14: 1429.51101 | W14: 36.4307595 | X14: 1393.080251 | Y14: 45.17858734 | Z14: 45.17858734
U15: 2019-12-01 | V15: 506.498919 | W15: 449.2256168 | X15: 57.2733022 | Y15: 30.445895 | Z15: 30.445895
U17: total | V17: =SUM(V4:V16) -> 6519.708326 | W17: =SUM(W4:W16) -> 6969.037763 | X17: -449.329437 | Y17: 424.7872294 | Z17: 424.7872294
B27: 1- create total of every column
B28: 2- create one new column with index function with a cell ref on the other side of sheet on a hidden area
B29: 3- go to the dashboard and separete it to four area for sales , expenses , profits , no. customer ( copy them from the table )
B30: 4- under it give empty row
B31: 5- under every title put the right total by using = and the cell ref
B32: 6- create conditional formatting after select the four factors and ,, cell that contain ,, the cell ref on the index function , with the right color and font color
B33: 7- select the first column and the index column from the table and create a column chart
B34: 8- format the column chart
B35: 9- create 4 buttons
B36: 10- create the four macros and then assign it to the buttons
B37: 11- create a function to copy in the title of the chart as above
B38: 12- Save as Macro enable is a must
